Cogmind - Beta 13 @@@ ROGUE MODE // 2024.05.06 @ 10:15:48 Player: Millea Result: Destroyed by G-47 Trooper with Particle Gun Performance ------------- Evolutions (2) 1000 Regions Visited (3) 600 Robots Destroyed (44) 220 Value Destroyed (861) 861 Prototype IDs (2) 40 Alien Tech Used (0) 0 Bonus (0) 0 TOTAL SCORE: 2721 Bonus ------- None Cogmind --------- Core Integrity 0/550 Matter 254/300 Energy 100/100 System Corruption 0% Temperature Cool (9) Movement Core (350) Ox6 Location -8/Materials Parts ------- > --- POWER (1) -------- (None) > --- PROPULSION (3) --- (None) > --- UTILITY (5) ------ Large Storage Unit Targeting Computer Targeting Computer > --- WEAPON (2) ------- (None) > --- INVENTORY (15) --- Aluminum Leg Wheel Heat Sink Terrain Scanner Targeting Computer ECM Suite Peak State ------------ > --- POWER ------------ Heavy Ion Engine > --- PROPULSION ------- Advanced Treads Advanced Treads Advanced Treads > --- UTILITY ---------- Large Storage Unit Improved Terrain Scanner Targeting Computer Targeting Computer Core Shielding > --- WEAPON ----------- Improved Medium Laser Improved Medium Laser > --- INVENTORY -------- Heavy Ion Engine Light Treads Light Treads Advanced Treads Aluminum Leg Wheel Heat Sink Terrain Scanner Targeting Computer ECM Suite Improved Medium Laser [Rating: 26] Favorites ----------- Power Ion Engine Engine Ion Engine Propulsion Light Treads Treads Light Treads Wheel Wheel Utility Targeting Computer Device Improved Terrain Scanner Storage Large Storage Unit Processor Targeting Computer Protection Light Armor Plating Weapon Medium Laser Energy Gun Medium Laser Ballistic Gun Assault Rifle Build | -11 -10 -9 -8 ------- Run | Yrd Mat Mat Mat Slots Evolved 4 | . . 2 2 Power . | . . . . Propulsion 1 | . . . 1 Utility 3 | . . 2 1 Weapon . | . . . . Parts Attached 36 | 7 3 17 9 Power 3 | 1 . 1 1 Engine 3 | 1 . 1 1 Core . | . . . . Reactor . | . . . . Propulsion 15 | 2 . 8 5 Treads 14 | 2 . 7 5 Leg . | . . . . Wheel 1 | . . 1 . Hover . | . . . . Flight . | . . . . Utility 12 | 2 3 5 2 Device 2 | 1 . . 1 Storage 2 | 1 1 . . Processor 3 | . . 3 . Hackware . | . . . . Protection 5 | . 2 2 1 Artifact . | . . . . Weapon 6 | 2 . 3 1 Energy Gun 5 | 2 . 2 1 Energy Cannon . | . . . . Ballistic Gun 1 | . . 1 . Ballistic Cannon . | . . . . Launcher . | . . . . Special Weapon . | . . . . Impact Weapon . | . . . . Slashing Weapon . | . . . . Piercing Weapon . | . . . . Special Melee Weapon . | . . . . Unidentified Prototypes 2 | . . 2 . Parts Lost 21 | . 2 4 15 Power 2 | . . . 2 Propulsion 9 | . 1 1 7 Utility 6 | . 1 2 3 Weapon 4 | . . 1 3 Highest Loss Streak 10 | . 1 2 10 To Critical Strikes . | . . . . Average Slot Usage (%) 93 | . 93 99 79 Engine 11 | . 14 11 8 Treads 21 | . 21 20 20 Device 1 | . . . 5 Storage 11 | . 14 11 9 Processor 13 | . . 25 20 Protection 9 | . 13 7 5 Energy Gun 21 | . 28 18 10 Ballistic Gun 1 | . . 3 . Naked Turns . | . . . . Heaviest Build 34 | 15 32 34 34 Greatest Support 64 | 40 40 44 64 Greatest Overweight (x) 3 | . 1 3 . Average Overweight (x) . | . . . . Largest Inventory Capacity 15 | 8 15 15 15 Average Capacity 13 | 6 12 15 15 Most Carried 15 | 6 15 15 14 Average Carried 10 | 4 9 13 9 Final Capacity 15 | 8 15 15 15 Final Carried 15 | 6 15 15 6 Class Distribution -------------------- 100% | Mutant Dominant Class ---------------- Mutant | -10/Materials Mutant | -9/Materials Mutant | -8/Materials Resources | -11 -10 -9 -8 ----------- Run | Yrd Mat Mat Mat Matter Collected 546 | 209 129 208 . Remotely . | . . . . Salvage Created 1177 | 38 367 671 101 Parts 71 | 3 20 43 5 Haulers Intercepted 3 | . 1 2 . Recyclers Shooed 1 | . . 1 . Parts Field Recycled . | . . . . Retrieved Matter . | . . . . Parts Self-Destructed . | . . . . Prevented . | . . . . Kills | -11 -10 -9 -8 ------- Run | Yrd Mat Mat Mat Combat Hostiles Destroyed 33 | . 13 18 2 Guns 31 | . 11 18 2 Classes Destroyed 6 | 1 4 1 . Tunneler 2 | 2 . . . Hauler 3 | . 1 2 . Watcher 6 | . 2 4 . Swarmer 20 | . 9 11 . Grunt 9 | . 4 3 2 Sentry 4 | . . 4 . Best Kill Streak 5 | 2 5 5 2 Combat Bots Only 5 | . 5 5 2 Max Kills in Single Turn 2 | 1 1 2 1 Gunslinging 1 | . . 1 . Exploded . | . . . . Melee . | . . . . Uniques/NPCs Destroyed . | . . . . Combat | -11 -10 -9 -8 -------- Run | Yrd Mat Mat Mat Hostile Shots Fired 331 | . 86 73 172 Missed 59 | . 16 22 21 Damage Taken 3509 | . 590 544 2375 Core 706 | . 58 85 563 Absorbed by Shields . | . . . . Redirected to Shielding 50 | . . . 50 Core Remaining (%) 84 | 100 76 78 . Volleys Fired 133 | 2 67 54 10 Largest 2 | 2 2 2 2 Hottest 112 | 100 100 112 112 Shots Fired 238 | 4 109 108 17 Gun 238 | 4 109 108 17 Cannon . | . . . . Launcher . | . . . . Special . | . . . . Kinetic 17 | . . 17 . Thermal 221 | 4 109 91 17 Explosive . | . . . . Electromagnetic . | . . . . Robot Hit Streak 23 | 2 9 23 14 Robot Miss Streak 4 | 1 4 4 1 Penetration Max . | . . . . Secondary Targets 6 | . 1 5 . Max Gunslinging Chain 1 | . 1 1 . Shots Hit Robots 150 | 2 56 77 15 Core Hits 63 | 2 22 33 6 Critical Kills . | . . . . Critical Parts Destroyed . | . . . . Critical Strikes 16 | 1 6 9 . Burn 16 | 1 6 9 . Melee Attacks . | . . . . Impact . | . . . . Slashing . | . . . . Piercing . | . . . . Sneak Attacks . | . . . . Combat Hostiles . | . . . . Follow-up Attacks . | . . . . Damage Inflicted 2329 | 37 802 1223 267 Guns 2322 | 37 802 1216 267 Cannons . | . . . . Explosions . | . . . . Melee . | . . . . Ramming 7 | . . 7 . Kinetic 164 | . . 164 . Thermal 2158 | 37 802 1052 267 Explosive . | . . . . Electromagnetic . | . . . . Impact . | . . . . Slashing . | . . . . Piercing . | . . . . Highest Corruption . | . . . . Average Corruption . | . . . . Corruption Purged . | . . . . Corruption Blocked . | . . . . Overload Shots . | . . . . Overflow Damage . | . . . . Projectiles . | . . . . Explosions . | . . . . Melee . | . . . . Knockbacks . | . . . . Impact . | . . . . Kinetic . | . . . . Secondary . | . . . . Self-Inflicted Damage . | . . . . Shots . | . . . . Rammed 1 | . . 1 . Targets Rammed 1 | . . 1 . Kicked . | . . . . Crushed . | . . . . Highest Temperature 383 | 78 358 216 383 Average Temperature 105 | 39 129 49 196 Received Heat Transfer 1695 | . 78 168 1449 Effects 7 | . 4 . 3 Shutdowns 1 | . . . 1 Energy Bleed 2 | . 1 . 1 Interference 2 | . 2 . . Matter Decay 2 | . 1 . 1 Siege Activations . | . . . . Robots Corrupted . | . . . . Combat Hostiles . | . . . . Parts Fried . | . . . . Impact Corruptions . | . . . . Robots Melted 3 | . 2 1 . Combat Hostiles 2 | . 2 . . Parts Melted 21 | . 8 13 . Heat Transferred 6623 | 185 2701 3145 592 Parts Sabotaged . | . . . . Parts Stolen . | . . . . Parts Stripped . | . . . . Power Chain Reactions . | . . . . Alert | -11 -10 -9 -8 ------- Run | Yrd Mat Mat Mat Peak Influence 309 | 10 247 309 92 Initial 72 | . 6 42 72 Average 122 | 1 117 164 51 Maximum Alert Level 1 | . 1 1 . Low Security (%) 82 | 100 83 72 100 Level 1 17 | . 16 27 . Level 2 . | . . . . Level 3 . | . . . . Level 4 . | . . . . Level 5 . | . . . . High Security . | . . . . Max Security . | . . . . Squads Dispatched 2 | . 2 . . Investigation . | . . . . Extermination . | . . . . Reinforcement 2 | . 2 . . Assault . | . . . . Garrison . | . . . . Intercept . | . . . . Searches Triggered . | . . . . Construction Impeded . | . . . . Haulers Reinforced . | . . . . Active Scanning Responses . | . . . . Cargo Convoy Interrupts . | . . . . Stealth | -11 -10 -9 -8 --------- Run | Yrd Mat Mat Mat Distress Signals 4 | . 1 1 2 Communications Jammed . | . . . . Distress Signals . | . . . . Times Spotted 59 | . 29 23 7 Peak Tracking Total 5 | . 4 3 5 Tactical Retreats 1 | . 1 . . Traps | -11 -10 -9 -8 ------- Run | Yrd Mat Mat Mat Traps Triggered 2 | . . 2 . Indirectly . | . . . . Trap Hack Attempts . | . . . . Triggered . | . . . . Disarmed . | . . . . Reprogrammed . | . . . . Reused . | . . . . Traps Extracted . | . . . . Installed . | . . . . Triggered . | . . . . Machines | -11 -10 -9 -8 ---------- Run | Yrd Mat Mat Mat Machines Disabled 3 | . . 3 . Max in Single Turn 1 | . . 1 . Machines Repaired . | . . . . Machines Dismantled . | . . . . Machines Sabotaged . | . . . . Overloaded Fab Kills . | . . . . Hacking | -11 -10 -9 -8 --------- Run | Yrd Mat Mat Mat Machines Accessed 5 | . 3 1 1 Terminals 5 | . 3 1 1 Fabricators . | . . . . Repair Stations . | . . . . Recycling Units . | . . . . Scanalyzers . | . . . . Garrison Access . | . . . . Total Hacks 15 | . 12 2 1 Successful 8 | . 6 1 1 Failed 7 | . 6 1 . Catastrophic 2 | . 2 . . Database Lockouts . | . . . . Manual 10 | . 10 . . Terminals 15 | . 12 2 1 Fabricators . | . . . . Repair Stations . | . . . . Recycling Units . | . . . . Scanalyzers . | . . . . Garrison Access . | . . . . Terminal Hacks 8 | . 6 1 1 Robot Analysis 6 | . 6 . . Unreport Threat 1 | . . 1 . Zone Layout 1 | . . . 1 Fabricator Hacks . | . . . . Repair Station Hacks . | . . . . Recycling Unit Hacks . | . . . . Scanalyzer . | . . . . Garrison Access Hacks . | . . . . Unauthorized Hacks . | . . . . Terminals . | . . . . Fabricators . | . . . . Repair Stations . | . . . . Recycling Units . | . . . . Scanalyzers . | . . . . Garrison Access . | . . . . Data Cores Recovered . | . . . . Used . | . . . . Hacking Detections 3 | . 2 1 . Full Trace Events . | . . . . Feedback Events . | . . . . Feedback Blocked . | . . . . Robot Schematics Acquired . | . . . . Robots Built . | . . . . Authchips . | . . . . Time . | . . . . Total Robot Build Rating . | . . . . Part Schematics Acquired . | . . . . Parts Built . | . . . . Authchips . | . . . . Time . | . . . . Total Part Build Rating . | . . . . Parts Repaired . | . . . . Time . | . . . . Parts Recycled . | . . . . Recycled Matter . | . . . . Retrieved Matter . | . . . . Retrieved Components . | . . . . Parts Scanalyzed . | . . . . Part Schematics Acquired . | . . . . Parts Damaged . | . . . . Bothacking | -11 -10 -9 -8 ------------ Run | Yrd Mat Mat Mat Used RIF Installer . | . . . . Robots Hacked . | . . . . Non-combat . | . . . . Combat . | . . . . Robot Hacks Applied . | . . . . Relay Couplers Released . | . . . . Fabnet Peak Effective % . | . . . . Robots Rewired . | . . . . Allies Hacked . | . . . . Hacks Repelled . | . . . . Allies | -11 -10 -9 -8 -------- Run | Yrd Mat Mat Mat Total Allies . | . . . . Largest Group . | . . . . Highest-Rated Group . | . . . . Highest-Rated Ally . | . . . . Total Orders . | . . . . Ally Attacks . | . . . . Total Damage . | . . . . Kills . | . . . . Allies Corrupted . | . . . . Allies Melted . | . . . . Intel | -11 -10 -9 -8 ------- Run | Yrd Mat Mat Mat Robot Analysis Total 6 | . 6 . . Derelict Logs Recovered . | . . . . Drone Launches . | . . . . Drone Recoveries . | . . . . Exploration | -11 -10 -9 -8 ------------- Run | Yrd Mat Mat Mat Turns Passed 2426 | 82 978 978 388 Spaces Moved 992 | 42 388 515 47 Core 6 | 6 . . . Treads 921 | 36 388 450 47 Legs . | . . . . Wheels 65 | . . 65 . Hover . | . . . . Flight . | . . . . Fastest Speed 50 | 50 160 125 150 Average Speed 166 | 144 190 152 150 Slowest Speed 240 | 160 240 240 150 Overloaded Moves . | . . . . Propulsion Burnouts . | . . . . Robots Hopped . | . . . . Cave-ins Triggered . | . . . . Exploration Rate (%) 37 | 4 84 51 10 Regions Visited 3 Branch Regions . Pre-discovered Areas . | . . . . Known Exits Taken . | . . . . Unknown Exits Taken 3 | 1 1 1 . Scrap Searched . | . . . . Spaces Dug . | . . . . Terrain Destroyed . | . . . . Melee . | . . . . Projectile . | . . . . AOE . | . . . . Terrain Rammed . | . . . . Walls Destroyed . | . . . . Machines Disabled . | . . . . Actions | -11 -10 -9 -8 --------- Run | Yrd Mat Mat Mat Total 1527 | 57 519 604 347 Wait 331 | . 49 1 281 Move 989 | 41 387 514 47 Hop . | . . . . Pick Up 25 | 7 10 8 . Fast Attach 13 | 6 1 6 . Attach 18 | 1 1 7 9 Detach 1 | . 1 . . Swap 5 | . 1 4 . Drop 11 | . 2 9 . Fire 133 | 2 67 54 10 Melee . | . . . . Ram . | . . . . Kick . | . . . . Crush 1 | . . 1 . Escape Stasis . | . . . . Rewire . | . . . . Trap . | . . . . Miscellaneous . | . . . . Route ------- -11/Scrapyard -10/Materials (discovered 4 exits: *Mat x2 / [*Min x2]) -9/Materials (discovered 3 exits: *Mat x2 / [*Min]) -8/Materials History --------- Turn | Location | Event 5 | -11/Scrapyard | Discovered new exit (range 14) 83 | -11/Scrapyard | Entered Materials 300 | -10/Materials | Build established: Mutant 568 | -10/Materials | Discovered new exit (range 12) 848 | -10/Materials | Discovered new exit (range 14) 877 | -10/Materials | Discovered new exit (range 16) 1022 | -10/Materials | Discovered new exit (range 8) 1061 | -10/Materials | Entered another Materials area 1061 | -9/Materials | Evolved 2 slots: Utility x2 1508 | -9/Materials | Discovered new exit (range 7) 1616 | -9/Materials | Discovered new exit (range 14) 1765 | -9/Materials | Discovered new exit (range 7) 2039 | -9/Materials | Entered another Materials area 2039 | -8/Materials | Evolved 2 slots: Propulsion x1, Utility x1 2218 | -8/Materials | Lost 3 parts (1n2w) 2344 | -8/Materials | Core integrity fell below 50% 2402 | -8/Materials | Core integrity fell below 20% 2427 | -8/Materials | Destroyed by G-47 Trooper with Particle Gun Last Messages --------------- 02294_ R-06 Scavenger collects Flak Cannon. 02296_ U-05 Engineer builds a Door. 02297_ R-06 Scavenger collects Flak Cannon. 02309_ Hvy. Ion Engine destroyed. 02317_ Adv. Treads destroyed. 02328_ U-05 Engineer builds a Door. 02329_ Imp. Medium Laser destroyed. 02331_ R-06 Scavenger collects Med. Armor Plating. 02337_ Lgt. Treads destroyed. 02343_ Core Shielding destroyed. 02344_ R-06 Scavenger collects Transport Network Coupler. 02347_ R-06 Scavenger collects Hpw. Shotgun. 02349_ Critical hit (Burn: +37). 02351_ R-06 Scavenger collects Ion Engine. 02359_ Lgt. Treads destroyed. 02377_ Imp. Terrain Scanner destroyed. 02380_ U-05 Engineer builds a Door. 02407_ Hvy. Ion Engine destroyed. Map ----- +----------------------------------------------------+ | | | | | | | | | | | | | | | | | | | ?????????????????????????????????????????????????? | | ??????????????????????#???##?#???????????????????? | | ????????????????????#??#?#???????????????????????? | | ????????????????????????#?###?????#??????????????? | | ????????????????#????###????####???#?????????????? | | ????????????????#????? ???? #??#?#?????????????? | | ??????????????#?#???## """ #????#?????????????? | | ?????????????#????#?## """ #?#?#??#?########??? | | ?????????????####????# """ #?#??????#[ #??? | | ??????????????#??????# #????????# #??? | | ????????????#?????##?# """ #????##### """ #### | | ?????????????????????# """ = #?#?######! """ # | | ??????????? ?????##?# """ #???#"""## """ # | | ????????????????????## #???#"T"## # | | ?????????? ##########t########" "#####+### | | ?????????? !^!! %% | | ????????? !!! g@ | | ??????????????## !! ##+###### | | ??????????? ?? # ^ # % ## / #####+# | | ???????????????#^^ # ## # | | ????????????" ?# # " ## # """ | | ???????????????#? + "" #T "Y" + """ | | ???????????"???# # "" ## """ # """ | | ?????????????? ? # """ + # | | ????????????????? # "" ## # """ | | ???????????????#? # """ ######### # """ | | ??????????????#?? ## # """ # # # """ | | ???????????????? ## ## """ # "" # # | | ???????????????#? ## ## " # ""S + ####### | | ????????????????? ## ##! # "" # #####?? | | ????????????????? ## ## # # # ?? | | ?????????????????+####+######### # # "?? | | ????????????????? #???# """ # # ""?? | | ????????????????? """"" ##??# """ # # ?? | | ?????????????????""""""""" #??# """ # # ?? | | ????????????????? """ """ ##?## # / ?? | | ????????????????? #??# # #####?? | | ?????????????????????????????????????????????????? | | ?????????????????????????????????????????????????? | | ?????????????????????????????????????????????????? | | ?????????????????????????????????????????????????? | +----------------------------------------------------+ Best States ------------- Heat Dissipation 31 Energy Generation 14 Energy Capacity 280 Matter Stores 300 Matter Capacity 300 Sight Range 16 Terrain Scan Range 16 Terrain Scan Density 10 Armor Coverage 150 Core Shielding 20 Evasion (%) 40 Targeting Accuracy 15 Recoil Reduction 3 Item Schematics ----------------- None Robot Schematics ------------------ None Fabricated ------------ Nothing Alien Tech Used ----------------- None Achievements -------------- None Challenges ------------ None Game ------ Seed BladeMediumLeg Manual? 0 Play Time 00:23:03 Cumulative 328.1 hours Start 2024.05.05 @ 19:06:54 End 2024.05.06 @ 10:15:48 Sessions 2 Manual Loads 0 Difficulty Rogue Special Mode None Game No. 239 Rogue 239 Adventurer 0 Explorer 0 Win Type - Total 12 Types 8/0/3/1/0/0/0/0/0 Lore% 80 Gallery% 87 Achievement% 74 Wizard Run 0 Options --------- Layout 2 ASCII 1 Keyboard 0 Movement Mouse Keybinds 0 Fullscreen 2 Font 24/Smallcaps Map View 50x44 Zoom Use 0% Tactical HUD 1 Map Filters NONE Filters NONE Steam 1 RUN: cff17b74-48fe-45ad-8a29-bd8ea9536227